Cogmind - Beta 15 @@@ ROGUE MODE // 2025.05.17 @ 13:36:58 Player: Cess183 Result: Destroyed by Y-45 Defender with Heavy Assault Rifle Performance ------------- Evolutions (1) 500 Regions Visited (2) 400 Robots Destroyed (14) 70 Value Destroyed (188) 188 Prototype IDs (0) 0 Alien Tech Used (0) 0 Bonus (0) 0 TOTAL SCORE: 1158 Bonus ------- None Cogmind --------- Core Integrity 0/400 Matter 188/300 Energy 99/100 System Corruption 0% Temperature Cool (9) Movement Core (100) Ox1 Location -9/Materials Parts ------- > --- POWER (1) -------- (None) > --- PROPULSION (3) --- (None) > --- UTILITY (3) ------ Small Storage Unit > --- WEAPON (2) ------- Light Assault Rifle > --- INVENTORY (8) ---- Datajack Datajack Peak State ------------ > --- POWER ------------ Ion Engine > --- PROPULSION ------- Compact Wheel Compact Wheel > --- UTILITY ---------- Small Storage Unit Improved Terrain Scanner Seismic Detector > --- WEAPON ----------- Assault Rifle Light Assault Rifle > --- INVENTORY -------- Light Ion Engine Structural Scanner Light Assault Rifle Grenade Launcher Datajack Datajack [Rating: 10] Favorites ----------- Power Ion Engine Engine Ion Engine Propulsion Compact Wheel Wheel Compact Wheel Utility Small Storage Unit Device Improved Terrain Scanner Storage Small Storage Unit Weapon Light Assault Rifle Ballistic Gun Light Assault Rifle Launcher Grenade Launcher Build | -11 -10 -9 ------- Run | Yrd Mat Mat Slots Evolved 2 | . . 2 Power . | . . . Propulsion 1 | . . 1 Utility 1 | . . 1 Weapon . | . . . Parts Attached 13 | 7 1 5 Power 3 | 1 1 1 Engine 3 | 1 1 1 Core . | . . . Reactor . | . . . Propulsion 2 | 2 . . Treads . | . . . Leg . | . . . Wheel 2 | 2 . . Hover . | . . . Flight . | . . . Utility 4 | 2 . 2 Device 3 | 1 . 2 Storage 1 | 1 . . Processor . | . . . Hackware . | . . . Protection . | . . . Artifact . | . . . Weapon 4 | 2 . 2 Energy Gun . | . . . Energy Cannon . | . . . Ballistic Gun 3 | 2 . 1 Ballistic Cannon . | . . . Launcher 1 | . . 1 Special Weapon . | . . . Impact Weapon . | . . . Slashing Weapon . | . . . Piercing Weapon . | . . . Special Melee Weapon . | . . . Unidentified Prototypes . | . . . Parts Lost 11 | . 1 10 Power 3 | . 1 2 Propulsion 2 | . . 2 Utility 3 | . . 3 Weapon 3 | . . 3 Highest Loss Streak 10 | . 1 10 To Critical Strikes . | . . . Average Backups 5 | 4 7 5 Power 1 | 1 2 . Propulsion 1 | 2 2 . Utility . | . 1 1 Weapon 1 | . 1 1 Tool/Special . | . . . Unused Backups 6 | . 4 2 Power 1 | . 1 . Propulsion 3 | . 3 . Utility . | . . . Weapon . | . . . Tool/Special 2 | . . 2 Average Slot Usage (%) 83 | . 98 75 Engine 10 | . 12 9 Wheel 21 | . 28 17 Device 15 | . 14 16 Storage 12 | . 14 11 Ballistic Gun 22 | . 28 19 Launcher 1 | . . 1 Peak Build Rating 10 | 9 9 10 Average Rating 7 | 6 8 8 On Entrance 6 | . 9 9 Naked Turns . | . . . Heaviest Build 15 | 14 14 15 Greatest Support 32 | 32 32 32 Greatest Overweight (x) 4 | . . 4 Average Overweight (x) . | . . . Largest Inventory Capacity 8 | 8 8 8 Average Capacity 7 | 7 8 8 Most Carried 8 | 7 8 7 Average Carried 5 | 4 7 5 Final Capacity 8 | 8 8 8 Final Carried 7 | 7 7 2 Class Distribution -------------------- 100% | Mutant Dominant Class ---------------- Mutant | -10/Materials Mutant | -9/Materials Resources | -11 -10 -9 ----------- Run | Yrd Mat Mat Matter Collected 269 | 253 . 16 Remotely . | . . . Salvage Created 405 | 101 218 86 Parts 32 | 16 11 5 Haulers Intercepted . | . . . Recyclers Shooed . | . . . Parts Field Recycled . | . . . Retrieved Matter . | . . . Parts Self-Destructed . | . . . Prevented . | . . . Kills | -11 -10 -9 ------- Run | Yrd Mat Mat Combat Hostiles Destroyed 5 | . 1 4 Guns 4 | . 1 3 AOE 1 | . . 1 Classes Destroyed 6 | 1 4 1 Worker 1 | . 1 . Builder 1 | . 1 . Tunneler 5 | 5 . . Recycler 2 | . 2 . Swarmer 4 | . 1 3 Sentry 1 | . . 1 Best Kill Streak 5 | 2 5 3 Combat Bots Only 3 | . 1 3 Max Kills in Single Turn 4 | 1 4 1 Gunslinging . | . . . Exploded 1 | . . 1 Melee . | . . . Uniques/NPCs Destroyed . | . . . Combat | -11 -10 -9 -------- Run | Yrd Mat Mat Hostile Shots Fired 136 | . 41 95 Missed 34 | . 13 21 Hits 102 | . 28 74 Projectile 102 | . 28 74 Critical Strikes 3 | . . 3 Damage Taken 1229 | . 283 946 Core 463 | . 57 406 Absorbed by Shields . | . . . Core Remaining (%) 88 | 100 77 . Volleys Fired 30 | 17 2 11 Largest 2 | 2 2 2 Hottest 50 | 40 40 50 Shots Fired 54 | 34 4 16 Gun 53 | 34 4 15 Cannon . | . . . Launcher 1 | . . 1 Special . | . . . Kinetic 53 | 34 4 15 Thermal . | . . . Explosive 1 | . . 1 Electromagnetic . | . . . Robot Hit Streak 5 | 5 1 3 Robot Miss Streak 3 | 3 1 2 Penetration Max . | . . . Secondary Targets . | . . . Shots Hit Robots 30 | 19 2 9 Core Hits 29 | 8 16 5 Critical Kills . | . . . Critical Parts Destroyed . | . . . Critical Strikes . | . . . Melee Attacks . | . . . Impact . | . . . Slashing . | . . . Piercing . | . . . Sneak Attacks . | . . . Combat Hostiles . | . . . Follow-up Attacks . | . . . Damage Inflicted 559 | 192 237 130 Guns 292 | 192 17 83 Cannons . | . . . Explosions 264 | . 217 47 Melee . | . . . Ramming 3 | . 3 . Kinetic 292 | 192 17 83 Thermal . | . . . Explosive 47 | . . 47 Electromagnetic 217 | . 217 . Impact . | . . . Slashing . | . . . Piercing . | . . . Highest Corruption . | . . . Average Corruption . | . . . Corruption Purged . | . . . Corruption Blocked . | . . . Overload Shots . | . . . Overflow Damage . | . . . Projectiles . | . . . Explosions . | . . . Melee . | . . . Knockbacks . | . . . Impact . | . . . Kinetic . | . . . Secondary . | . . . Self-Inflicted Damage 1 | . 1 . Shots . | . . . Rammed 1 | . 1 . Targets Rammed 1 | . 1 . Kicked . | . . . Crushed . | . . . Highest Temperature 33 | . . 33 Average Temperature 15 | . . 15 Received Heat Transfer 366 | . 87 279 Siege Activations . | . . . Martial Activations . | . . . Shielding Activations . | . . . Robots Disrupted . | . . . Combat Hostiles . | . . . Robots Corrupted . | . . . Combat Hostiles . | . . . Parts Fried . | . . . Impact Corruptions . | . . . Robots Melted . | . . . Combat Hostiles . | . . . Parts Melted . | . . . Heat Transferred . | . . . Parts Sabotaged . | . . . Parts Stolen . | . . . Parts Stripped . | . . . Power Chain Reactions 3 | . 3 . Alert | -11 -10 -9 ------- Run | Yrd Mat Mat Maximum Alert Level . | . . . Low Security (%) 100 | 100 100 100 Level 1 . | . . . Level 2 . | . . . Level 3 . | . . . Level 4 . | . . . Level 5 . | . . . High Security . | . . . Max Security . | . . . Peak Influence 120 | 5 120 42 Initial 42 | . . 42 Average 13 | . 34 19 Influence Increases 264 | 25 130 109 Destroy 0b10 Robot/C 100 | . 20 80 Destroy 0b10 Robot/NC 45 | 25 20 . Destroy Leader 20 | . . 20 Disable Machine 75 | . 75 . Destroy Structure 9 | . . 9 Lose Combat Pursuer 15 | . 15 . Influence Decreases 235 | 25 30 180 Entered New Map 58 | . . 58 Time Decay 117 | 25 20 72 Lost Part 60 | . 10 50 Squads Dispatched 2 | . 2 . Investigation 1 | . 1 . Extermination . | . . . Reinforcement 1 | . 1 . Assault . | . . . Garrison . | . . . Intercept . | . . . Searches Triggered . | . . . Construction Impeded . | . . . Haulers Reinforced . | . . . Active Scanning Responses . | . . . Cargo Convoy Interrupts . | . . . Stealth | -11 -10 -9 --------- Run | Yrd Mat Mat Distress Signals 3 | . 2 1 Communications Jammed . | . . . Distress Signals . | . . . Times Spotted 18 | . 9 9 Peak Tracking Total 10 | . 6 10 Tactical Retreats 1 | . 1 . Traps | -11 -10 -9 ------- Run | Yrd Mat Mat Traps Triggered 1 | . 1 . Indirectly . | . . . Trap Hack Attempts . | . . . Triggered . | . . . Disarmed . | . . . Reprogrammed . | . . . Reused . | . . . Traps Extracted . | . . . Installed . | . . . Triggered . | . . . Machines | -11 -10 -9 ---------- Run | Yrd Mat Mat Machines Disabled 5 | . 5 . Max in Single Turn 5 | . 5 . Machines Repaired . | . . . Machines Dismantled . | . . . Machines Sabotaged . | . . . Overloaded Fab Kills . | . . . Hacking | -11 -10 -9 --------- Run | Yrd Mat Mat Machines Accessed . | . . . Terminals . | . . . Fabricators . | . . . Repair Stations . | . . . Recycling Units . | . . . Scanalyzers . | . . . Garrison Access . | . . . Total Hacks . | . . . Successful . | . . . Failed . | . . . Catastrophic . | . . . Database Lockouts . | . . . Manual . | . . . Terminals . | . . . Fabricators . | . . . Repair Stations . | . . . Recycling Units . | . . . Scanalyzers . | . . . Garrison Access . | . . . Terminal Hacks . | . . . Fabricator Hacks . | . . . Repair Station Hacks . | . . . Recycling Unit Hacks . | . . . Scanalyzer . | . . . Garrison Access Hacks . | . . . Unauthorized Hacks . | . . . Terminals . | . . . Fabricators . | . . . Repair Stations . | . . . Recycling Units . | . . . Scanalyzers . | . . . Garrison Access . | . . . Data Cores Recovered . | . . . Used . | . . . Hacking Detections . | . . . Full Trace Events . | . . . Feedback Events . | . . . Feedback Blocked . | . . . Robot Schematics Acquired . | . . . Robots Built . | . . . Authchips . | . . . Time . | . . . Total Robot Build Rating . | . . . Part Schematics Acquired . | . . . Parts Built . | . . . Authchips . | . . . Time . | . . . Total Part Build Rating . | . . . Parts Repaired . | . . . Time . | . . . Parts Recycled . | . . . Recycled Matter . | . . . Retrieved Matter . | . . . Retrieved Components . | . . . Parts Scanalyzed . | . . . Part Schematics Acquired . | . . . Parts Damaged . | . . . Bothacking | -11 -10 -9 ------------ Run | Yrd Mat Mat Used RIF Installer . | . . . Robots Hacked . | . . . Non-combat . | . . . Combat . | . . . Robot Hacks Applied . | . . . Relay Couplers Released . | . . . Fabnet Peak Effective % . | . . . Robots Rewired . | . . . Allies Hacked . | . . . Hacks Repelled . | . . . Allies | -11 -10 -9 -------- Run | Yrd Mat Mat Total Allies . | . . . Largest Group . | . . . Highest-Rated Group . | . . . Highest-Rated Ally . | . . . Total Orders . | . . . Ally Attacks . | . . . Total Damage . | . . . Kills . | . . . Allies Corrupted . | . . . Allies Melted . | . . . Intel | -11 -10 -9 ------- Run | Yrd Mat Mat Active Infowar (turns) 365 | 105 94 166 Terrain 325 | 105 94 126 Structural 6 | . . 6 Seismic 132 | . . 132 Robot Analysis Total . | . . . Derelict Logs Recovered . | . . . Drone Launches . | . . . Drone Recoveries . | . . . Exploration | -11 -10 -9 ------------- Run | Yrd Mat Mat Turns Passed 487 | 222 94 171 Spaces Moved 364 | 155 80 129 Core 18 | 4 . 14 Treads . | . . . Legs . | . . . Wheels 346 | 151 80 115 Hover . | . . . Flight . | . . . Fastest Speed 50 | 50 100 100 Average Speed 102 | 98 100 109 Slowest Speed 250 | 100 100 250 Overloaded Moves . | . . . Propulsion Burnouts . | . . . Robots Hopped . | . . . Potential Cave-ins . | . . . Cave-ins Triggered . | . . . Exploration Rate (%) 14 | 5 21 17 Regions Visited 2 Branch Regions . Pre-discovered Areas . | . . . Known Exits Taken . | . . . Unknown Exits Taken 2 | 1 1 . Scrap Searched . | . . . Spaces Dug . | . . . Terrain Destroyed 8 | . . 8 Melee . | . . . Projectile . | . . . AOE 8 | . . 8 Terrain Rammed . | . . . Walls Destroyed . | . . . Machines Disabled . | . . . Actions | -11 -10 -9 --------- Run | Yrd Mat Mat Total 426 | 189 92 145 Wait 4 | 4 . . Move 363 | 154 80 129 Hop . | . . . Pick Up 12 | 7 5 . Fast Attach 7 | 7 . . Attach 6 | . 1 5 Detach . | . . . Swap . | . . . Drop 4 | . 4 . Fire 30 | 17 2 11 Melee . | . . . Ram . | . . . Kick . | . . . Crush . | . . . Escape Stasis . | . . . Rewire . | . . . Trap . | . . . Miscellaneous . | . . . Route ------- -11/Scrapyard -10/Materials -9/Materials History --------- Turn | Location | Event 2 | -11/Scrapyard | Met Revision 17 36 | -11/Scrapyard | Discovered new exit (range 16) 223 | -11/Scrapyard | Entered Materials 292 | -10/Materials | Discovered new exit (range 15) 317 | -10/Materials | Entered another Materials area 317 | -9/Materials | Evolved 2 slots: Propulsion x1, Utility x1 332 | -9/Materials | Build established: Mutant 450 | -9/Materials | Core integrity fell below 50% 475 | -9/Materials | Core integrity fell below 20% 488 | -9/Materials | Destroyed by Y-45 Defender with Heavy Assault Rifle Last Messages --------------- 00433_ K-01 Serf collects debris. 00435_ Com. Wheel destroyed. 00436_ K-01 Serf collects debris. 00440_ Ion Engine destroyed. 00440_ Assault Rifle destroyed. 00442_ K-01 Serf cleans the Processing Tank. 00442_ Lgt. Assault Rifle destroyed. 00443_ Imp. Terrain Scanner destroyed. 00449_ Structural Scanner destroyed. 00451_ S-10 Pest destroyed. 00453_ Com. Wheel destroyed. 00454_ Acquired 16 matter. 00459_ S-10 Pest destroyed. 00465_ R-06 Scavenger collects Flight Unit. 00475_ Critical hit (Burn: +37). 00475_ Lgt. Ion Engine destroyed. 00480_ U-05 Engineer lays Concrete. 00480_ Grenade Launcher destroyed. 00481_ Y-45 Defender destroyed. 00483_ Seismic Detector destroyed. Map ----- +----------------------------------------------------+ | ??????? ???? ?# # + """ #? | | ??????? ??? ?# + # #? | | ?????? ????#?# # / #? | | ?????? ??????# # ######## | | ??????####??????# # ## # | | ???????????#?#??# # # | | ????????????????########## # | | ???????????? ? ??? ???#??# # | | ????????????????? ???###### ### # | | ?????????????????????######+#### ## | | ???????????????????? # ## #? | | ???????????????????? # """ ##? #? | | ?????????#?????????? # """ ## #? | | ??????????????? ???? # """ ##?? #? | | ?????????????#?##+#### """ # ? ? ? | | ???????????????# ### """ # ???? | | ???????????????# ### # ?? ?? | | ???????????????+ ### #????? | | ???????????????# ### #?????? | | ???????????????# ## ###+###?????? | | ???????????????# ## % #? ??????? | | ???????????????# ## [ #? ????? | | ?????########### ## #? """ ???? | | ?????# """ # ###=##? """ ?? | | ?????# "Y" # ### ### """ ? | | ?????# @ # # | | ?????# """ """ ; =%% / | | ?????# """ """ # Y! # | | ?????# """ """ # #####+## # | | ?????? # # ????????? # | | ?????? ] *# + ???????????? | | ?????########### ##### ???????????? | | ?????????????? #####????????????? | | ?????????????#######????????????????? | | ????????????????????????????????????? | | ????????????????????????????????????? | | ????????????????????????????????????? | | ????????????????????????????????????? | | ????????????????????????????????????? | | ????????????????????????????????????? | | ????????????????????????????????????? | | ????????????????????????????????????? | | ????????????????????????????????????? | | ????????????????????????????????????? | | ????????????????????????????????????? | | ????????????????????????????????????? | | ????????????????????????????????????? | | ????????????????????????????????????? | | ????????????????????????????????????? | | ????????????????????????????????????? | +----------------------------------------------------+ Best States ------------- Heat Dissipation 28 Energy Generation 10 Energy Capacity 250 Matter Stores 262 Matter Capacity 300 Sight Range 16 Terrain Scan Range 16 Terrain Scan Density 10 Evasion (%) 40 Item Schematics ----------------- None Robot Schematics ------------------ None Fabricated ------------ Nothing Repaired ---------- Nothing Alien Tech Used ----------------- None Achievements -------------- None Challenges ------------ None Game ------ Seed AccelerationLightClaws Manual? 0 Play Time 00:08:32 Cumulative 7.9 hours Start 2025.05.17 @ 13:29:37 End 2025.05.17 @ 13:36:58 Sessions 1 Manual Loads 0 Difficulty Rogue Special Mode None Game No. 11 Rogue 11 Adventurer 0 Explorer 0 Win Type - Total 0 Types 0/0/0/0/0/0/0/0/0/0 Lore% 5 Gallery% 9 Achievement% 8 Wizard Run 0 Options --------- Layout 1 ASCII 0 Keyboard 1 Movement Vi Keybinds 0 Fullscreen 1 Font 24/Smallcaps Map View 50x35 Zoom Use 0% Tactical HUD 1 Map Filters NONE Filters NONE Steam 1 RUN: 7c66b5fd-9af4-4676-8cb5-90e56937186b